lending/lending_fUSD_20250706
["ID","MTS","AMOUNT","RATE_DAILY","PERIOD"]
[369960372,1751799034410,-858.02,0.00019178,2]
[369960373,1751799034420,-460.0,0.00019178,2]
[369960374,1751799034429,-460.0,0.00019178,2]
[369960375,1751799034440,-460.0,0.00019178,2]
[369960376,1751799034449,-460.0,0.00019178,2]
[369960377,1751799034459,-460.0,0.00019178,2]
[369960378,1751799034468,-460.0,0.00019178,2]
[369960379,1751799034477,-460.0,0.00019178,2]
[369960380,1751799034487,-460.0,0.00019178,2]
[369960381,1751799034497,-460.0,0.00019178,2]
[369960382,1751799034506,-460.0,0.00019178,2]
[369960383,1751799034516,-460.0,0.00019178,2]
[369960384,1751799034525,-460.0,0.00019178,2]
[369960385,1751799034535,-460.0,0.00019178,2]
[369960386,1751799034544,-460.0,0.00019178,2]
[369960387,1751799034553,-460.0,0.00019178,2]
[369960388,1751799034563,-460.0,0.00019178,2]
[369960389,1751799034572,-460.0,0.00019178,2]
[369960390,1751799034582,-460.0,0.00019178,2]
[369960391,1751799034591,-460.0,0.00019178,2]
[369960392,1751799034600,-460.0,0.00019178,2]
[369960393,1751799034610,-460.0,0.00019178,2]
[369960394,1751799034619,-460.0,0.00019178,2]
[369960395,1751799034629,-460.0,0.00019178,2]
[369960396,1751799034638,-354.32270523,0.00019178,2]
[369960397,1751799034648,-460.0,0.00019178,2]
[369960398,1751799034657,-460.0,0.00019178,2]
[369960399,1751799034666,-460.0,0.00019178,2]
[369960400,1751799034918,-562.46669313,0.00019178,2]
[369960401,1751799034930,-460.0,0.00019178,2]
[369960402,1751799034939,-460.0,0.00019178,2]
[369960403,1751799034950,-460.0,0.00019178,2]
[369960404,1751799034959,-460.0,0.00019178,2]
[369960405,1751799034968,-980.94,0.00019178,2]
[369960406,1751799034977,-460.0,0.00019178,2]
[369960407,1751799034986,-460.0,0.00019178,2]
[369960408,1751799034996,-460.0,0.00019178,2]
[369960409,1751799035006,-460.0,0.00019178,2]
[369960410,1751799035014,-890.97,0.00019178,2]
[369960411,1751799035024,-460.0,0.00019178,2]
[369960412,1751799035033,-598.13,0.00019178,2]
[369960413,1751799035042,-460.0,0.00019178,2]
[369960414,1751799035051,-460.0,0.00019178,2]
[369960415,1751799035060,-460.0,0.00019178,2]
[369960416,1751799035070,-460.0,0.00019178,2]
[369960417,1751799035079,-460.0,0.00019178,2]
[369960418,1751799035088,-658.36,0.00019178,2]
[369960419,1751799035098,-807.87,0.00019178,2]
[369960420,1751799035108,-460.0,0.00019178,2]
[369960421,1751799035118,-184.95460897,0.00019178,2]
[369960422,1751799035127,-460.0,0.00019178,2]
[369960423,1751799035137,-460.0,0.00019178,2]
[369960424,1751799035146,-465.09972986,0.00019178,2]
[369960425,1751799035155,-531.9,0.00019178,2]
[369960426,1751799035164,-768.05,0.00019178,2]
[369960427,1751799035176,-460.0,0.00019178,2]
[369960428,1751799035186,-193.68736666,0.00019178,2]
[369960429,1751799035195,-460.0,0.00019178,2]
[369960430,1751799035205,-505.25063984,0.00019178,2]
[369960431,1751799035214,-460.0,0.00019178,2]
[369960432,1751799035223,-460.0,0.00019178,2]
[369960433,1751799035232,-460.0,0.00019178,2]
[369960434,1751799035241,-460.0,0.00019178,2]
[369960435,1751799035251,-460.0,0.00019178,2]
[369960436,1751799035260,-460.0,0.00019178,2]
[369960437,1751799035269,-460.0,0.00019178,2]
[369960438,1751799035279,-460.0,0.00019178,2]
[369960439,1751799035289,-460.0,0.00019178,2]
[369960440,1751799035299,-460.0,0.00019178,2]
[369960441,1751799035308,-460.0,0.00019178,2]
[369960442,1751799035317,-460.0,0.00019178,2]
[369960443,1751799035327,-460.0,0.00019178,2]
[369960444,1751799035337,-460.0,0.00019178,2]
[369960445,1751799035347,-460.0,0.00019178,2]
[369960446,1751799035356,-460.0,0.00019178,2]
[369960447,1751799035366,-460.0,0.00019178,2]
[369960448,1751799035375,-460.0,0.00019178,2]
[369960449,1751799035385,-460.0,0.00019178,2]
[369960450,1751799035394,-460.0,0.00019178,2]
[369960451,1751799035403,-460.0,0.00019178,2]
[369960452,1751799035413,-460.0,0.00019178,2]
[369960453,1751799035422,-460.0,0.00019178,2]
[369960454,1751799035431,-637.43,0.00019178,2]
[369960455,1751799035440,-460.0,0.00019178,2]
[369960456,1751799035450,-460.0,0.00019178,2]
[369960457,1751799035459,-460.0,0.00019178,2]
[369960458,1751799035468,-460.0,0.00019178,2]
[369960459,1751799035478,-751.8,0.00019178,2]
[369960460,1751799035487,-460.0,0.00019178,2]
[369960461,1751799035497,-460.0,0.00019178,2]
[369960462,1751799035507,-460.0,0.00019178,2]
[369960463,1751799035516,-460.0,0.00019178,2]
[369960464,1751799035525,-460.0,0.00019178,2]
[369960465,1751799035535,-460.0,0.00019178,2]
[369960466,1751799035545,-460.0,0.00019178,2]
[369960467,1751799035554,-460.0,0.00019178,2]
[369960468,1751799035564,-751.56,0.00019178,2]
[369960469,1751799035573,-460.0,0.00019178,2]
[369960470,1751799035583,-550.11,0.00019178,2]
[369960471,1751799035593,-460.0,0.00019178,2]
[369960472,1751799035602,-470.56,0.00019178,2]
[369960473,1751799035611,-460.0,0.00019178,2]
[369960474,1751799035622,-674.18,0.00019178,2]
[369960475,1751799035631,-460.0,0.00019178,2]
[369960476,1751799035640,-460.0,0.00019178,2]
[369960477,1751799035650,-460.0,0.00019178,2]
[369960478,1751799035659,-460.0,0.00019178,2]
[369960479,1751799035668,-185.94094874,0.00019178,2]
[369960480,1751799035678,-460.0,0.00019178,2]
[369960481,1751799035688,-460.0,0.00019178,2]
[369960482,1751799035698,-727.39,0.00019178,2]
[369960483,1751799035708,-649.77,0.00019178,2]
[369960484,1751799035717,-460.0,0.00019178,2]
[369960485,1751799035727,-460.0,0.00019178,2]
[369960486,1751799035736,-460.0,0.00019178,2]
[369960487,1751799035745,-460.0,0.00019178,2]
[369960488,1751799035756,-460.0,0.00019178,2]
[369960489,1751799035765,-569.57949977,0.00019178,2]
[369960490,1751799035774,-460.0,0.00019178,2]
[369960491,1751799035783,-500.0,0.00019178,2]
[369960492,1751799035792,-500.0,0.00019178,2]
[369960493,1751799035802,-460.0,0.00019178,2]
[369960494,1751799035811,-460.0,0.00019178,2]
[369960495,1751799035822,-612.34,0.00019178,2]
[369960496,1751799035832,-499.16657122,0.00019178,2]
[369960497,1751799035842,-460.0,0.00019178,2]
[369960498,1751799035853,-546.62,0.00019178,2]
[369960499,1751799035863,-460.0,0.00019178,2]
[369960500,1751799035873,-460.0,0.00019178,2]
[369960501,1751799035883,-460.0,0.00019178,2]
[369960502,1751799035892,-461.43,0.00019178,2]
[369960503,1751799035901,-599.28,0.00019178,2]
[369960504,1751799035910,-471.36,0.00019178,2]
[369960505,1751799035919,-460.0,0.00019178,2]
[369960506,1751799035929,-679.63,0.00019178,2]
[369960507,1751799035938,-460.0,0.00019178,2]
[369960508,1751799035947,-460.0,0.00019178,2]
[369960509,1751799035957,-460.0,0.00019178,2]
[369960510,1751799035966,-460.0,0.00019178,2]
[369960511,1751799035976,-993.41,0.00019178,2]
[369960512,1751799035985,-460.0,0.00019178,2]
[369960513,1751799035995,-460.0,0.00019178,2]
[369960514,1751799036004,-460.0,0.00019178,2]
[369960515,1751799036013,-460.0,0.00019178,2]
[369960516,1751799036023,-460.0,0.00019178,2]
[369960517,1751799036032,-460.0,0.00019178,2]
[369960518,1751799036041,-460.0,0.00019178,2]
[369960519,1751799036051,-460.0,0.00019178,2]
[369960520,1751799036060,-460.0,0.00019178,2]
[369960521,1751799036069,-460.0,0.00019178,2]
[369960522,1751799036078,-460.0,0.00019178,2]
[369960523,1751799036088,-460.0,0.00019178,2]
[369960524,1751799036098,-460.0,0.00019178,2]
[369960525,1751799036107,-460.0,0.00019178,2]
[369960526,1751799036116,-244.58100985,0.00019178,2]
[369960527,1751799036125,-686.17,0.00019178,2]
[369960528,1751799036135,-460.0,0.00019178,2]
[369960529,1751799036145,-717.72,0.00019178,2]
[369960530,1751799036154,-460.0,0.00019178,2]
[369960531,1751799036164,-801.99,0.00019178,2]
[369960532,1751799036178,-579.76,0.00019178,2]
[369960533,1751799036187,-460.0,0.00019178,2]
[369960534,1751799036197,-460.0,0.00019178,2]
[369960535,1751799036207,-463.6312855,0.00019178,2]
[369960536,1751799036216,-582.25,0.00019178,2]
[369960537,1751799036226,-460.0,0.00019178,2]
[369960538,1751799036237,-460.0,0.00019178,2]
[369960539,1751799036247,-460.0,0.00019178,2]
[369960540,1751799036256,-211.06103739,0.00019178,2]
[369960541,1751799036267,-460.0,0.00019178,2]
[369960542,1751799036276,-460.0,0.00019178,2]
[369960543,1751799036285,-939.77,0.00019178,2]
[369960544,1751799036295,-249.57241094,0.00019178,2]
[369960545,1751799036304,-460.0,0.00019178,2]
[369960546,1751799036313,-488.15,0.00019178,2]
[369960547,1751799036323,-460.0,0.00019178,2]
[369960548,1751799036332,-460.0,0.00019178,2]
[369960549,1751799036342,-460.0,0.00019178,2]
[369960550,1751799036352,-460.0,0.00019178,2]
[369960551,1751799036361,-460.0,0.00019178,2]
[369960552,1751799036371,-460.0,0.00019178,2]
[369960553,1751799036381,-460.0,0.00019178,2]
[369960554,1751799036390,-460.0,0.00019178,2]
[369960555,1751799036400,-460.0,0.00019178,2]
[369960556,1751799036410,-460.0,0.00019178,2]
[369960557,1751799036419,-460.0,0.00019178,2]
[369960558,1751799036430,-460.0,0.00019178,2]
[369960559,1751799036440,-460.0,0.00019178,2]
[369960560,1751799036450,-460.0,0.00019178,2]
[369960561,1751799036459,-665.82,0.00019178,2]
[369960562,1751799036469,-460.0,0.00019178,2]
[369960563,1751799036478,-460.0,0.00019178,2]
[369960564,1751799036487,-160.0,0.00019178,2]
[369960565,1751799036497,-460.0,0.00019178,2]
[369960566,1751799036507,-460.0,0.00019178,2]
[369960567,1751799036517,-460.0,0.00019178,2]
[369960568,1751799036526,-762.45,0.00019178,2]
[369960569,1751799036536,-555.21093913,0.00019178,2]
[369960570,1751799036546,-460.0,0.00019178,2]
[369960571,1751799036555,-520.26,0.00019178,2]
[369960572,1751799036565,-460.0,0.00019178,2]
[369960573,1751799036574,-460.0,0.00019178,2]
[369960574,1751799036583,-460.0,0.00019178,2]
[369960575,1751799036593,-561.22711598,0.00019178,2]
[369960576,1751799036602,-460.0,0.00019178,2]
[369960577,1751799036611,-460.0,0.00019178,2]
[369960578,1751799036621,-556.79198319,0.00019178,2]
[369960579,1751799036631,-571.26,0.00019178,2]
[369960580,1751799036640,-460.0,0.00019178,2]
[369960581,1751799036649,-460.0,0.00019178,2]
[369960582,1751799036660,-460.0,0.00019178,2]
[369960583,1751799036669,-802.4,0.00019178,2]
[369960584,1751799036679,-460.0,0.00019178,2]
[369960585,1751799036688,-460.0,0.00019178,2]
[369960586,1751799036699,-460.0,0.00019178,2]
[369960587,1751799036708,-460.0,0.00019178,2]
[369960588,1751799036717,-460.0,0.00019178,2]
[369960589,1751799036727,-460.0,0.00019178,2]
[369960590,1751799036736,-460.0,0.00019178,2]
[369960591,1751799036746,-1015.4,0.00019178,2]
[369960592,1751799036755,-460.0,0.00019178,2]
[369960593,1751799036764,-1228.29,0.00019178,2]
[369960594,1751799036773,-703.91,0.00019178,2]
[369960595,1751799036783,-460.0,0.00019178,2]
[369960596,1751799036792,-460.0,0.00019178,2]
[369960597,1751799036801,-460.0,0.00019178,2]
[369960598,1751799036810,-460.0,0.00019178,2]
[369960599,1751799036820,-460.0,0.00019178,2]
[369960600,1751799036829,-461.43428781,0.00019178,2]
[369960601,1751799036839,-460.0,0.00019178,2]
[369960602,1751799036848,-460.0,0.00019178,2]
[369960603,1751799036858,-513.09,0.00019178,2]
[369960604,1751799036867,-460.0,0.00019178,2]
[369960605,1751799036876,-460.0,0.00019178,2]
[369960606,1751799036885,-609.99,0.00019178,2]
[369960607,1751799036895,-203.52152055,0.00019178,2]
[369960608,1751799036904,-767.91,0.00019178,2]
[369960609,1751799036914,-460.0,0.00019178,2]
[369960610,1751799036923,-460.0,0.00019178,2]
[369960611,1751799036933,-483.62,0.00019178,2]
[369960612,1751799036942,-1086.74,0.00019178,2]
[369960613,1751799036951,-460.0,0.00019178,2]
[369960614,1751799036960,-460.0,0.00019178,2]
[369960615,1751799036971,-460.0,0.00019178,2]
[369960616,1751799036981,-460.0,0.00019178,2]
[369960617,1751799036991,-460.0,0.00019178,2]
[369960618,1751799037001,-460.0,0.00019178,2]
[369960619,1751799037011,-697.61,0.00019178,2]
[369960620,1751799037021,-460.0,0.00019178,2]
[369960621,1751799037030,-460.0,0.00019178,2]
[369960622,1751799037039,-460.0,0.00019178,2]
[369960623,1751799037049,-622.2,0.00019178,2]
[369960624,1751799037058,-460.0,0.00019178,2]
[369960625,1751799037067,-460.0,0.00019178,2]
[369960626,1751799037076,-460.0,0.00019178,2]
[369960627,1751799037085,-460.0,0.00019178,2]
[369960628,1751799037095,-495.79,0.00019178,2]
[369960629,1751799037104,-460.0,0.00019178,2]
[369960630,1751799037114,-460.0,0.00019178,2]
[369960631,1751799037124,-228.10391525,0.00019178,2]
[369960632,1751799037133,-580.45,0.00019178,2]
[369960633,1751799037142,-460.0,0.00019178,2]
[369960634,1751799037152,-460.0,0.00019178,2]
[369960635,1751799037161,-460.0,0.00019178,2]
[369960636,1751799037172,-871.39,0.00019178,2]
[369960637,1751799037183,-460.0,0.00019178,2]
[369960638,1751799037192,-460.0,0.00019178,2]
[369960639,1751799037202,-460.0,0.00019178,2]
[369960640,1751799037213,-611.05,0.00019178,2]
[369960641,1751799037223,-460.0,0.00019178,2]
[369960642,1751799037233,-460.0,0.00019178,2]
[369960643,1751799037243,-460.0,0.00019178,2]
[369960644,1751799037253,-460.0,0.00019178,2]
[369960645,1751799037262,-460.0,0.00019178,2]
[369960646,1751799037273,-460.0,0.00019178,2]
[369960647,1751799037282,-460.0,0.00019178,2]
[369960648,1751799037292,-460.0,0.00019178,2]
[369960649,1751799037301,-460.0,0.00019178,2]
[369960650,1751799037311,-525.2277388,0.00019178,2]
[369960651,1751799037320,-553.3,0.00019178,2]
[369960652,1751799037330,-460.0,0.00019178,2]
[369960653,1751799037339,-460.0,0.00019178,2]
[369960654,1751799037349,-460.0,0.00019178,2]
[369960655,1751799037359,-460.0,0.00019178,2]
[369960656,1751799037369,-495.59177618,0.00019178,2]
[369960657,1751799037380,-679.12,0.00019178,2]
[369960658,1751799037390,-482.53,0.00019178,2]
[369960659,1751799037400,-460.0,0.00019178,2]
[369960660,1751799037409,-460.0,0.00019178,2]
[369960661,1751799037418,-460.0,0.00019178,2]
[369960662,1751799037427,-460.0,0.00019178,2]
[369960663,1751799037436,-460.0,0.00019178,2]
[369960664,1751799037445,-460.0,0.00019178,2]
[369960665,1751799037455,-460.0,0.00019178,2]
[369960666,1751799037465,-460.0,0.00019178,2]
[369960667,1751799037474,-460.0,0.00019178,2]
[369960668,1751799037484,-460.0,0.00019178,2]
[369960669,1751799037493,-460.0,0.00019178,2]
[369960670,1751799037502,-460.0,0.00019178,2]
[369960671,1751799037511,-460.0,0.00019178,2]
[369960672,1751799037520,-460.0,0.00019178,2]
[369960673,1751799037530,-460.0,0.00019178,2]
[369960674,1751799037540,-460.0,0.00019178,2]
[369960675,1751799037549,-460.0,0.00019178,2]
[369960676,1751799037559,-460.0,0.00019178,2]
[369960677,1751799037568,-563.21510194,0.00019178,2]
[369960678,1751799037577,-460.0,0.00019178,2]
[369960679,1751799037586,-460.0,0.00019178,2]
[369960680,1751799037597,-460.0,0.00019178,2]
[369960681,1751799037607,-964.67,0.00019178,2]
[369960682,1751799037616,-460.0,0.00019178,2]
[369960683,1751799037625,-460.0,0.00019178,2]
[369960684,1751799037634,-460.0,0.00019178,2]
[369960685,1751799037644,-940.39,0.00019178,2]
[369960686,1751799037653,-460.0,0.00019178,2]
[369960687,1751799037663,-460.0,0.00019178,2]
[369960688,1751799037673,-460.0,0.00019178,2]
[369960689,1751799037683,-281.89266115,0.00019178,2]
[369960699,1751799039275,-178.10733885,0.00019178,2]
[369960700,1751799039284,-579.73611481,0.00019178,2]
[369960701,1751799039295,-284.59388519,0.00019178,2]
[369960702,1751799039305,-460.0,0.00019178,2]
[369960703,1751799039315,-97.85073181,0.00019178,2]
[369960705,1751799040605,-362.14926819,0.00019178,2]
[369960706,1751799040615,-698.56,0.00019178,2]
[369960707,1751799040625,-460.0,0.00019178,2]
[369960708,1751799040635,-460.0,0.00019178,2]
[369960709,1751799040645,-460.0,0.00019178,2]
[369960710,1751799040655,-548.69,0.00019178,2]
[369960711,1751799040665,-1748.5,0.00019178,2]
[369960712,1751799040675,-460.0,0.00019178,2]
[369960713,1751799040684,-460.0,0.00019178,2]
[369960714,1751799040694,-460.0,0.00019178,2]
[369960715,1751799040704,-460.0,0.00019178,2]
[369960716,1751799040714,-460.0,0.00019178,2]
[369960717,1751799040724,-460.0,0.00019178,2]
[369960718,1751799040734,-460.0,0.00019178,2]
[369960719,1751799040744,-460.0,0.00019178,2]
[369960720,1751799040753,-460.0,0.00019178,2]
[369960721,1751799040763,-1019.16,0.00019178,2]
[369960722,1751799040773,-1000.0,0.00019178,2]
[369960723,1751799040783,-460.0,0.00019178,2]
[369960724,1751799040797,-806.3,0.00019178,2]
[369960725,1751799040807,-460.0,0.00019178,2]
[369960726,1751799040817,-507.66,0.00019178,2]
[369960727,1751799040827,-460.0,0.00019178,2]
[369960728,1751799040837,-460.0,0.00019178,2]
[369960729,1751799040847,-469.17858184,0.00019178,2]
[369960730,1751799040857,-200.0,0.00019178,2]
[369960731,1751799040867,-460.0,0.00019178,2]
[369960732,1751799040878,-912.58,0.00019178,2]
[369960733,1751799040888,-710.99,0.00019178,2]
[369960734,1751799040897,-570.58,0.00019178,2]
[369960736,1751799040907,-460.0,0.00019178,2]
[369960738,1751799040916,-558.52,0.00019178,2]
[369960740,1751799040926,-460.0,0.00019178,2]
[369960742,1751799040935,-460.0,0.00019178,2]
[369960743,1751799040945,-156.92195637,0.00019178,2]
[369960744,1751799041060,-303.07804363,0.00019178,2]
[369960745,1751799041070,-641.15,0.00019178,2]
[369960746,1751799041079,-460.0,0.00019178,2]
[369960747,1751799041089,-153.77123199,0.00019178,2]
[369960748,1751799041098,-691.96,0.00019178,2]
[369960749,1751799041108,-451.84072438,0.00019178,2]
[369960750,1751799041120,-307.04927562,0.00019178,2]
[369960751,1751799041130,-460.0,0.00019178,2]
[369960752,1751799041139,-23.9659941,0.00019178,2]
[369960753,1751799041152,-436.0340059,0.00019178,2]
[369960754,1751799041161,-460.0,0.00019178,2]
[369960755,1751799041173,-916.71,0.00019178,2]
[369960757,1751799041183,-460.0,0.00019178,2]
[369960758,1751799041192,-460.0,0.00019178,2]
[369960760,1751799041202,-677.73,0.00019178,2]
[369960761,1751799041211,-460.0,0.00019178,2]
[369960762,1751799041220,-362.12579024,0.00019178,2]
[369960763,1751799041312,-97.87420976,0.00019178,2]
[369960764,1751799041322,-460.0,0.00019178,2]
[369960765,1751799041332,-527.21,0.00019178,2]
[369960766,1751799041344,-460.0,0.00019178,2]
[369960767,1751799041354,-460.0,0.00019178,2]
[369960768,1751799041364,-460.0,0.00019178,2]
[369960769,1751799041374,-825.6,0.00019178,2]
[369960770,1751799041383,-460.0,0.00019178,2]
[369960771,1751799041395,-460.0,0.00019178,2]
[369960772,1751799041406,-460.0,0.00019178,2]
[369960773,1751799041417,-460.0,0.00019178,2]
[369960774,1751799041426,-460.0,0.00019178,2]
[369960775,1751799041437,-381.57940589,0.00019178,2]
[369960778,1751799043311,-78.42059411,0.00019178,2]
[369960779,1751799043322,-460.0,0.00019178,2]
[369960780,1751799043331,-460.0,0.00019178,2]
[369960781,1751799043341,-380.0,0.00019178,2]
[369960782,1751799043352,-460.0,0.00019178,2]
[369960783,1751799043362,-460.0,0.00019178,2]
[369960784,1751799043372,-122.47940589,0.00019178,2]
[369960944,1751799046187,-337.52059411,0.00019178,2]
[369960945,1751799046196,-232.85441073,0.00019178,2]
[369960946,1751799046209,-227.14558927,0.00019178,2]
[369960947,1751799046220,-151.0,0.00019178,2]
[369960948,1751799046229,-388.38851374,0.00019178,2]
[369960949,1751799046252,-71.61148626,0.00019178,2]
[369960950,1751799046261,-531.75301133,0.00019178,2]
[369960951,1751799046271,-460.0,0.00019178,2]
[369960952,1751799046280,-530.39624028,0.00019178,2]
[369960953,1751799046290,-460.0,0.00019178,2]
[369960954,1751799046299,-460.0,0.00019178,2]
[369960955,1751799046309,-1379.87,0.00019178,2]
[369960956,1751799046318,-255.6285718,0.00019178,2]
[369960957,1751799046327,-911.11,0.00019178,2]
[369960958,1751799046337,-460.0,0.00019178,2]
[369960959,1751799046347,-460.0,0.00019178,2]
[369960960,1751799046356,-460.0,0.00019178,2]
[369960961,1751799046367,-490.0,0.00019178,2]
[369960962,1751799046377,-460.0,0.00019178,2]
[369960963,1751799046387,-460.0,0.00019178,2]
[369960964,1751799046397,-460.0,0.00019178,2]
[369960965,1751799046406,-460.0,0.00019178,2]
[369960966,1751799046416,-460.0,0.00019178,2]
[369960967,1751799046426,-460.0,0.00019178,2]
[369960968,1751799046436,-2159.0,0.00019178,2]
[369960969,1751799046447,-460.0,0.00019178,2]
[369960970,1751799046456,-460.0,0.00019178,2]
[369960971,1751799046466,-460.0,0.00019178,2]
[369960972,1751799046476,-751.39,0.00019178,2]
[369960973,1751799046486,-586.78627741,0.00019178,2]
[369960974,1751799046495,-540.66,0.00019178,2]
[369960975,1751799046504,-1090.6,0.00019178,2]
[369960976,1751799046514,-460.0,0.00019178,2]
[369960977,1751799046523,-550.0,0.00019178,2]
[369960978,1751799046534,-460.0,0.00019178,2]
[369960979,1751799046544,-460.0,0.00019178,2]
[369960980,1751799046554,-460.0,0.00019178,2]
[369960981,1751799046563,-460.0,0.00019178,2]
[369960982,1751799046573,-460.0,0.00019178,2]
[369960983,1751799046583,-460.0,0.00019178,2]
[369960984,1751799046592,-460.0,0.00019178,2]
[369960985,1751799046602,-460.0,0.00019178,2]
[369960986,1751799046612,-460.0,0.00019178,2]
[369960987,1751799046622,-732.37,0.00019178,2]
[369960988,1751799046632,-460.0,0.00019178,2]
[369960989,1751799046642,-558.59301791,0.00019178,2]
[369960990,1751799046652,-488.34511896,0.00019178,2]
[369960991,1751799046661,-460.0,0.00019178,2]
[369960992,1751799046671,-525.70675571,0.00019178,2]
[369960993,1751799046680,-460.0,0.00019178,2]
[369960994,1751799046690,-460.0,0.00019178,2]
[369960995,1751799046701,-460.0,0.00019178,2]
[369960996,1751799046712,-460.0,0.00019178,2]
[369960997,1751799046722,-460.0,0.00019178,2]
[369960998,1751799046732,-460.0,0.00019178,2]
[369960999,1751799046742,-378.23961232,0.00019178,2]
[369961000,1751799046752,-460.0,0.00019178,2]
[369961001,1751799046762,-460.0,0.00019178,2]
[369961002,1751799046772,-460.0,0.00019178,2]
[369961003,1751799046781,-460.0,0.00019178,2]
[369961004,1751799046791,-460.0,0.00019178,2]
[369961005,1751799046800,-460.0,0.00019178,2]
[369961006,1751799046810,-460.0,0.00019178,2]
[369961007,1751799046820,-460.0,0.00019178,2]
[369961008,1751799046830,-471.76,0.00019178,2]
[369961009,1751799046839,-460.0,0.00019178,2]
[369961010,1751799046849,-460.0,0.00019178,2]
[369961011,1751799046859,-460.0,0.00019178,2]
[369961012,1751799046869,-478.28,0.00019178,2]
[369961013,1751799046879,-490.64,0.00019178,2]
[369961014,1751799046889,-460.0,0.00019178,2]
[369961015,1751799046899,-680.94,0.00019178,2]
[369961016,1751799046909,-460.0,0.00019178,2]
[369961017,1751799046919,-460.0,0.00019178,2]
[369961018,1751799046928,-460.0,0.00019178,2]
[369961019,1751799046937,-460.0,0.00019178,2]
[369961020,1751799046947,-460.0,0.00019178,2]
[369961021,1751799046957,-460.0,0.00019178,2]
[369961022,1751799046967,-460.0,0.00019178,2]
[369961023,1751799046976,-2348.82,0.00019178,2]
[369961024,1751799046986,-460.0,0.00019178,2]
[369961025,1751799046995,-461.60740163,0.00019178,2]
[369961026,1751799047006,-2607.6,0.00019178,2]
[369961027,1751799047015,-541.89,0.00019178,2]
[369961028,1751799047025,-460.0,0.00019178,2]
[369961029,1751799047035,-460.0,0.00019178,2]
[369961030,1751799047045,-608.91,0.00019178,2]
[369961031,1751799047054,-554.78811856,0.00019178,2]
[369961032,1751799047064,-460.0,0.00019178,2]
[369961033,1751799047073,-851.24,0.00019178,2]
[369961034,1751799047083,-460.0,0.00019178,2]
[369961035,1751799047093,-460.0,0.00019178,2]
[369961036,1751799047102,-460.0,0.00019178,2]
[369961037,1751799047112,-460.0,0.00019178,2]
[369961038,1751799047121,-479.2,0.00019178,2]
[369961039,1751799047132,-460.0,0.00019178,2]
[369961041,1751799047142,-595.47,0.00019178,2]
[369961043,1751799047151,-460.0,0.00019178,2]
[369961045,1751799047161,-460.0,0.00019178,2]
[369961047,1751799047171,-500.0,0.00019178,2]
[369961049,1751799047182,-3142.7,0.00019178,2]
[369961051,1751799047191,-460.0,0.00019178,2]
[369961053,1751799047200,-460.0,0.00019178,2]
[369961055,1751799047210,-227.26681672,0.00019178,2]
[369961057,1751799047219,-460.0,0.00019178,2]